bitfinex/quotes_ETHUSD_20240731
["timestamp","ask_amount","ask_price","bid_price","bid_amount"]
[1722438153130,3.01272,3319.3,3317.8,3.01398]
[1722438153469,3.01337,3318.6,3317.8,3.01398]
[1722438153682,3.01344,3318.5,3317.6,3.01419]
[1722438153847,3.01344,3318.5,3317.7,3.01413]
[1722438154062,3.01355,3318.4,3317.7,3.01413]
[1722438154279,3.01355,3318.4,3317.4,3.01436]
[1722438154280,3.01355,3318.4,3317.5,3.0143]
[1722438154568,3.01355,3318.4,3315.1,1.813]
[1722438154569,2.4023,3318.2,3316.4,3.01529]
[1722438154767,3.01461,3317.2,3316.5,3.162785]
[1722438154958,3.01443,3317.4,3316.5,3.162785]
[1722438155475,3.01468,3317.1,3316.5,3.162785]
[1722438156160,3.01468,3317.1,3316.5,0.147625]
[1722438156676,3.01477,3317.0,3316.5,0.147625]
[1722438156988,3.0,3317.7,3316.6,3.01513]
[1722438156989,3.01435,3317.5,3316.6,3.01513]
[1722438157295,3.9172,3317.5,3316.6,3.0151]
[1722438157439,3.01451,3317.3,3316.5,0.147625]
[1722438157771,0.90285,3317.5,3316.5,0.147625]
[1722438157772,3.01449,3317.4,3316.6,3.01512]
[1722438157940,3.01443,3317.4,3316.8,3.01495]
[1722438158137,3.91723,3317.5,3316.6,3.01512]
[1722438158368,3.01465,3317.2,3316.6,3.01512]
[1722438158570,3.01452,3317.3,3316.6,3.01512]
[1722438159072,0.391723,3317.4,3316.8,3.01487]
[1722438159271,3.01423,3317.6,3316.9,3.01479]
[1722438159571,3.0,3317.5,3316.9,3.01479]
[1722438160161,3.0,3317.5,3317.0,3.01476]
[1722438160380,3.0,3317.5,3317.1,3.01467]
[1722438160551,3.01438,3317.5,3316.7,3.01496]
[1722438160746,3.01438,3317.5,3316.6,3.01513]
[1722438160747,3.01455,3317.3,3316.6,3.01513]
[1722438161146,0.601438,3317.4,3316.8,3.01489]
[1722438161560,3.615848,3317.4,3316.7,3.015]
[1722438161961,3.0145,3317.3,3316.7,3.015]
[1722438162158,0.601438,3317.4,3316.9,3.01484]
[1722438162364,0.601438,3317.4,3316.7,3.01496]
[1722438162558,0.601438,3317.4,3316.9,3.01485]
[1722438162865,3.0,3317.6,3317.0,3.01468]
[1722438163252,3.0,3317.6,3317.1,3.01461]
[1722438163458,9.7513,3317.8,3317.1,3.01461]
[1722438163459,3.0,3317.7,3317.1,3.01461]
[1722438163659,3.0,3317.7,3317.2,3.01451]
[1722438163855,3.0,3317.7,3317.4,3.01435]
[1722438164153,3.847808,3318.6,3317.9,3.01389]
[1722438164565,3.0135,3318.4,3317.7,3.01407]
[1722438164793,3.01377,3318.1,3317.5,3.01427]
[1722438164973,3.01366,3318.3,3317.5,3.01424]
[1722438165484,3.01366,3318.3,3317.6,3.01419]
[1722438165658,3.01369,3318.2,3317.5,3.01424]
[1722438165863,3.01382,3318.1,3317.4,3.01438]
[1722438166190,3.01391,3318.0,3317.4,3.01438]
[1722438167193,3.315059,3318.2,3317.5,3.01431]
[1722438167379,3.834448,3318.6,3317.9,3.01389]
[1722438167567,3.834448,3318.6,3317.9,3.01387]
[1722438167568,3.847768,3318.6,3317.9,3.01387]
[1722438167768,3.0,3318.5,3317.7,3.0141]
[1722438167985,3.01352,3318.4,3317.7,3.0141]
[1722438168192,6.0136,3318.3,3317.7,3.0141]
[1722438168387,3.0136,3318.3,3317.7,3.0141]
[1722438168589,3.01369,3318.2,3317.3,3.01447]
[1722438168792,3.01369,3318.2,3317.4,3.01438]
[1722438168793,3.01391,3318.0,3317.4,3.01438]
[1722438169914,3.01396,3317.9,3317.2,6.02909]
[1722438170076,3.01396,3317.9,3317.0,3.01473]
[1722438170280,3.01396,3317.9,3317.3,3.01448]
[1722438170715,3.01377,3318.1,3317.3,3.01448]
[1722438170716,3.01386,3318.0,3317.3,3.01448]
[1722438170914,0.60136,3318.3,3317.6,3.01414]
[1722438171116,0.834448,3318.6,3318.0,3.01385]
[1722438171316,0.834448,3318.6,3318.2,3.01361]
[1722438171520,3.4521957,3318.9,3317.4,5.46087]
[1722438171722,2.2675,3319.4,3318.7,3.01321]
[1722438171924,2.2675,3319.4,3318.9,3.01304]
[1722438172084,3.0122,3319.9,3319.0,3.01294]
[1722438172444,3.01232,3319.7,3319.0,3.01294]
[1722438172645,3.313642,3319.6,3319.0,3.01294]
[1722438172935,3.313642,3319.6,3318.9,3.01304]
[1722438173133,3.01265,3319.4,3318.6,3.01327]
[1722438173349,3.01265,3319.4,3318.6,3.01324]
[1722438173500,3.313682,3319.6,3318.7,3.01322]
[1722438173844,3.01264,3319.4,3318.7,3.01322]
[1722438174407,3.6313682,3319.5,3318.7,3.01313]
[1722438174734,3.0,3319.5,3319.0,3.0129]
[1722438174939,3.01258,3319.5,3318.8,3.01313]
[1722438175506,3.01241,3319.6,3318.9,3.01298]
[1722438175702,13.42218,3319.9,3319.2,3.01276]
[1722438175949,16.4344,3319.9,3319.2,3.01276]
[1722438176154,3.7739559,3319.8,3319.1,3.01286]
[1722438176300,3.0,3319.7,3319.1,3.01286]
[1722438176503,3.0,3319.7,3319.2,3.01276]
[1722438177368,7.41,3319.9,3319.4,3.01252]
[1722438177648,3.0,3319.8,3319.4,3.01252]
[1722438177872,5.79545,3320.0,3319.2,3.01273]
[1722438178040,3.01217,3319.9,3319.0,3.01291]
[1722438178252,3.0,3319.8,3319.2,3.01271]
[1722438178456,3.0,3319.8,3319.4,3.01258]
[1722438178747,2.79545,3320.0,3319.4,3.01258]
[1722438178748,0.52795,3320.0,3319.4,3.01258]
[1722438178926,3.0,3319.9,3319.4,3.01258]
[1722438179123,3.0,3320.2,3319.6,3.01235]
[1722438179339,2.284,3320.1,3319.7,3.01226]
[1722438179511,2.284,3320.1,3319.4,3.01255]
[1722438179512,2.284,3320.1,3319.6,3.0124]
[1722438179871,2.284,3320.1,3319.6,3.01234]
[1722438180013,2.284,3320.1,3319.8,3.01215]
[1722438180728,2.284,3320.1,3319.6,3.01236]
[1722438180942,0.2284,3320.0,3319.5,3.01248]
[1722438181153,0.2284,3320.0,3319.6,3.0124]
[1722438181310,6.02385,3320.2,3319.5,3.01244]
[1722438181512,7.41,3320.3,3318.9,3.01304]
[1722438181715,3.0,3320.2,3319.6,3.0124]
[1722438182011,7.41,3320.3,3319.7,3.01231]
[1722438182215,7.41,3320.3,3320.0,3.01203]
[1722438182414,6.02293,3320.7,3320.0,3.01196]
[1722438182714,3.01189,3320.2,3319.6,3.01235]
[1722438182915,0.902293,3320.6,3319.5,3.01249]
[1722438183175,3.01201,3320.1,3319.4,3.01255]
[1722438183461,3.01186,3320.2,3319.5,3.01244]
[1722438183835,3.01197,3320.1,3319.5,3.01244]
[1722438184018,3.01205,3320.0,3319.3,3.01265]
[1722438184219,3.01205,3320.0,3318.7,8.29881]
[1722438184220,0.33475339,3320.1,3318.7,5.2856]
[1722438184450,3.01172,3320.4,3319.7,3.01224]
[1722438184869,0.902293,3320.6,3320.0,3.01204]
[1722438185065,0.902293,3320.6,3320.1,3.01193]
[1722438185367,2.4562,3321.0,3320.1,3.01193]
[1722438185777,10.42123,3320.9,3320.3,3.01172]
[1722438186710,7.41,3320.9,3320.5,3.01153]
[1722438186818,7.41,3320.9,3319.8,0.06023719]
[1722438186819,3.01153,3320.6,3319.8,3.01215]
[1722438187352,7.41,3320.9,3320.4,3.01163]
[1722438187515,7.41,3320.9,3320.0,3.01198]
[1722438187721,3.01138,3320.8,3319.8,3.01218]
[1722438187921,3.0115,3320.6,3319.8,3.01217]
[1722438188154,3.01138,3320.8,3319.5,3.0125]
[1722438188458,3.0,3321.1,3320.5,3.01153]
[1722438188627,0.4521957,3321.2,3320.5,3.01153]
[1722438188830,0.88257357,3321.2,3320.6,3.01148]
[1722438189027,0.88257357,3321.2,3320.6,3.01141]
[1722438189028,3.88257357,3321.2,3320.6,3.01141]
[1722438189253,2.3233,3321.1,3319.4,2.4685]
[1722438189552,2.3233,3321.1,3320.2,3.01186]
[1722438189854,8.3344,3321.1,3320.3,3.01172]
[1722438190021,3.01131,3320.9,3320.1,3.0119]
[1722438190220,0.83344,3321.0,3319.4,5.48102]
[1722438190470,3.01185,3320.3,3319.5,3.01243]
[1722438190766,3.01185,3320.3,3319.4,2.4685]
[1722438190767,3.01205,3320.0,3319.4,3.01255]
[1722438190916,3.01205,3320.0,3318.6,0.15148101]
[1722438190917,3.01245,3319.6,3318.9,3.01295]
[1722438191115,3.0125,3319.5,3318.7,3.01322]
[1722438191331,3.61492,3319.6,3318.8,3.01313]
[1722438191535,3.61492,3319.6,3318.5,2.4365]
[1722438191536,0.60247,3319.6,3318.9,3.01301]
[1722438191752,3.01232,3319.7,3319.0,3.01289]
[1722438192053,3.01241,3319.6,3318.8,3.01306]
[1722438192245,3.0,3319.9,3318.5,2.4365]
[1722438192448,3.0,3319.9,3318.7,3.01321]
[1722438192449,3.01264,3319.4,3318.7,3.01321]
[1722438192822,3.01244,3319.6,3318.5,2.4365]
[1722438193022,3.614908,3319.6,3318.9,3.01298]
[1722438193224,3.0,3319.9,3318.5,2.68015]
[1722438193430,7.41,3320.1,3319.4,3.01253]
[1722438193631,3.0126,3319.4,3318.6,3.0133]
[1722438193834,3.01278,3319.2,3318.5,3.25703]
[1722438194053,3.01278,3319.2,3318.0,5.29865]
[1722438194054,3.0131,3318.9,3318.1,10.29369]
[1722438194262,3.0131,3318.9,3318.0,2.2848]
[1722438194263,3.01293,3319.1,3318.4,3.01343]
[1722438194466,3.01293,3319.1,3318.3,3.01352]
[1722438194467,3.39100796,3319.0,3318.3,3.01358]
[1722438194644,3.39100796,3319.0,3318.3,6.02709]
[1722438194845,12.86315,3319.6,3318.7,3.01314]
[1722438195139,3.0,3319.5,3318.8,3.01313]
[1722438195334,3.01265,3319.4,3318.8,3.01313]
[1722438195540,3.0,3319.5,3317.9,3.01389]
[1722438195541,3.0133,3318.7,3317.9,3.01389]
[1722438196093,3.01334,3318.6,3317.9,3.01389]
[1722438197246,3.01281,3319.2,3317.9,3.01389]
[1722438197247,3.01324,3318.7,3317.9,3.01389]
[1722438197476,3.01383,3318.1,3317.4,3.0144]
[1722438197654,3.01383,3318.1,3317.1,0.301473]
[1722438197655,3.01396,3317.9,3317.2,3.01457]
[1722438197854,3.01412,3317.8,3316.8,3.01489]
[1722438198055,3.01412,3317.8,3317.1,3.01462]
[1722438198282,3.01373,3318.2,3316.7,3.015]
[1722438198460,2.71208,3317.5,3316.7,3.5635525]
[1722438198649,2.71208,3317.5,3316.8,3.01494]
[1722438199008,3.01416,3317.7,3316.9,3.01486]
[1722438199158,3.01404,3317.8,3317.0,3.01469]
[1722438199574,3.01425,3317.6,3316.5,0.147625]
[1722438199771,3.01477,3317.0,3316.5,0.147625]
[1722438200109,3.01442,3317.4,3316.6,3.01513]
[1722438200247,3.0,3317.5,3316.5,3.162755]
[1722438200450,2.3169,3317.7,3316.5,3.162755]
[1722438200451,3.0146,3317.2,3316.5,3.162755]
[1722438200770,3.31441,3317.4,3316.5,3.162755]
[1722438200771,3.01441,3317.4,3316.7,3.01504]
[1722438200971,3.01423,3317.6,3316.8,3.01495]
[1722438201277,3.01423,3317.6,3316.5,3.162845]
[1722438201278,3.3440573,3318.0,3317.3,3.01448]
[1722438201483,6.01395,3317.9,3317.3,3.01448]
[1722438201699,0.63440873,3317.8,3316.5,0.147625]
[1722438201924,3.0147,3317.1,3316.5,3.162775]
[1722438202054,3.0147,3317.1,3316.5,0.147625]
[1722438202260,2.7124,3317.1,3316.5,0.147625]
[1722438202762,0.63440873,3317.8,3316.5,0.147625]
[1722438202998,3.01427,3317.6,3316.9,3.01486]
[1722438203154,3.0,3317.5,3316.8,3.01488]
[1722438203353,3.01441,3317.4,3316.8,3.01488]
[1722438203559,3.0,3317.5,3316.9,0.05661049]
[1722438203863,3.0,3317.5,3317.0,3.01476]
[1722438204233,3.01406,3317.8,3317.0,3.01476]
[1722438204234,5.28214,3318.2,3317.4,3.0144]
[1722438204433,2.3067,3318.8,3317.4,3.0144]
[1722438204708,2.3067,3318.8,3316.5,0.147625]
[1722438204709,3.01422,3317.6,3317.5,0.056446]
[1722438204857,6.02844,3317.6,3317.5,0.056446]
[1722438205059,6.02844,3317.6,3316.6,3.01511]
[1722438205060,3.01474,3317.1,3316.5,0.147625]
[1722438205328,3.01453,3317.3,3316.5,3.162825]
[1722438205462,10.42434,3317.5,3316.6,3.06467617]
[1722438205654,10.42434,3317.5,3316.6,3.01509]
[1722438205655,7.41,3317.5,3316.6,3.01509]
[1722438205861,3.0,3317.4,3316.7,0.05666534]
[1722438206201,3.01459,3317.2,3316.5,3.4790575]
[1722438206408,3.01459,3317.2,3316.8,0.05663792]
[1722438206721,3.01452,3317.3,3316.9,0.05661049]
[1722438207092,3.01452,3317.3,3316.6,3.01513]
[1722438207442,3.01452,3317.3,3316.7,3.07169534]
[1722438207621,3.0,3317.4,3316.7,0.05666534]
[1722438207820,6.01441,3317.4,3316.7,3.07163534]
[1722438208036,3.0145,3317.3,3316.5,3.4790875]
[1722438208221,3.01471,3317.1,3316.8,0.05663792]
[1722438208445,6.02908,3317.3,3316.8,0.05663792]
[1722438208743,3.0146,3317.2,3316.5,3.162825]
[1722438208943,3.0145,3317.3,3316.9,0.05661049]
[1722438209246,3.0145,3317.3,3316.7,3.01504]
[1722438209469,3.0,3317.4,3317.0,0.05658307]
[1722438209605,3.0,3317.4,3316.8,3.01487]
[1722438209808,3.0,3317.4,3316.5,0.147625]
[1722438210058,7.41,3317.5,3317.3,3.01444]
[1722438210219,10.42366,3318.3,3316.6,2.9155]
[1722438210569,3.0135,3318.4,3317.8,3.01404]
[1722438210704,3.01344,3318.5,3317.8,3.01404]
[1722438210916,9.7833,3318.7,3317.8,0.06575773]
[1722438211106,3.01364,3318.3,3317.6,3.01415]
[1722438211309,3.01391,3318.0,3317.8,0.06575773]
[1722438211551,3.01382,3318.1,3316.8,3.01491]
[1722438211718,3.01369,3318.2,3317.8,0.06575773]
[1722438211922,3.0135,3318.4,3317.6,3.01415]
[1722438212168,1.02354957,3318.6,3317.8,3.01397]
[1722438212313,7.41,3318.7,3317.7,0.06578971]
[1722438212510,7.41,3318.7,3318.1,3.0137]
[1722438212933,7.41,3318.7,3318.1,3.01369]
[1722438213232,7.41,3318.7,3318.2,3.01361]
[1722438213407,3.01296,3319.0,3318.3,3.01358]
[1722438213590,0.539211,3319.1,3317.9,3.07417077]
[1722438213804,5.39211,3319.2,3318.6,3.01331]
[1722438214134,7.41,3319.3,3318.6,3.01325]
[1722438214365,7.41,3319.3,3318.7,3.01316]
[1722438214679,7.41,3319.3,3318.9,3.01303]
[1722438215124,7.41,3319.3,3319.1,3.01284]
[1722438215328,7.41,3320.0,3319.4,3.01258]
[1722438215626,5.31828,3320.1,3318.5,3.01333]
[1722438215627,2.3063,3320.1,3318.5,3.01333]
[1722438215921,3.0124,3319.7,3318.7,3.01318]
[1722438216126,3.0124,3319.7,3318.9,3.01303]
[1722438216333,3.01214,3319.9,3319.2,3.0127]
[1722438216693,3.01225,3319.8,3318.9,3.01302]
[1722438216936,3.01251,3319.5,3318.9,3.01302]
[1722438217309,3.01242,3319.6,3318.9,3.01302]
[1722438217680,3.01284,3319.2,3318.3,5.28795]
[1722438217883,3.01262,3319.4,3318.3,3.01355]
[1722438218202,3.01287,3319.1,3318.5,3.01333]
[1722438218792,3.314002,3319.3,3318.5,3.01333]
[1722438218989,3.314002,3319.3,3318.6,3.01331]
[1722438219189,0.301262,3319.3,3318.7,3.01321]
[1722438219442,0.301262,3319.3,3318.0,3.01382]
[1722438219443,3.01331,3318.7,3317.9,3.01388]
[1722438219633,2.3323,3319.2,3317.7,3.01406]
[1722438219634,7.41,3318.9,3317.7,3.01406]
[1722438219992,3.01386,3318.0,3317.4,3.01435]
[1722438220342,3.01375,3318.2,3317.2,3.01451]
[1722438220489,3.01391,3318.0,3317.2,3.01451]
[1722438220710,3.01391,3318.0,3317.2,3.315961]
[1722438221257,6.01353,3318.4,3317.5,3.01426]
[1722438221564,6.01353,3318.4,3317.2,3.01453]
[1722438221565,3.01396,3317.9,3317.2,3.01453]
[1722438221745,3.01388,3318.0,3316.5,0.6104332]
[1722438221963,3.01373,3318.2,3317.4,3.01434]
[1722438222152,3.0,3318.1,3317.5,3.01428]
[1722438223379,3.0,3318.2,3317.5,3.01428]
[1722438223685,3.01401,3317.9,3317.2,3.01456]
[1722438223818,3.01405,3317.8,3317.2,3.01456]
[1722438224020,3.01405,3317.8,3316.8,3.01487]
[1722438224021,2.71192,3317.6,3316.8,3.01487]
[1722438224279,3.01441,3317.4,3316.6,3.01509]
[1722438224619,3.01441,3317.4,3316.7,3.01498]
[1722438224861,3.01426,3317.6,3316.8,3.01492]
[1722438224862,3.01432,3317.5,3316.8,3.01492]
[1722438225020,3.01426,3317.6,3316.9,3.01483]
[1722438225220,3.01406,3317.8,3317.0,3.01471]
[1722438225480,3.01386,3318.0,3317.2,3.01455]
[1722438225622,3.0141,3317.8,3317.0,3.0147]
[1722438225828,3.0141,3317.8,3316.8,3.01487]
[1722438225829,6.02823,3317.8,3316.8,3.01487]
[1722438226173,2.2625,3318.1,3316.5,0.147625]
[1722438226174,3.01448,3317.4,3316.5,0.147625]
[1722438226337,3.01439,3317.5,3316.8,3.01494]
[1722438226528,3.01426,3317.6,3316.8,3.01494]
[1722438226961,3.01426,3317.6,3317.0,3.01476]
[1722438227570,3.01406,3317.8,3317.0,3.01468]
[1722438227783,2.2625,3318.1,3316.5,0.4639155]
[1722438227784,3.0142,3317.7,3316.6,3.01512]
[1722438227983,3.01468,3317.1,3316.5,3.162825]
[1722438228830,3.01477,3317.0,3316.5,0.147625]
[1722438229158,3.01465,3317.2,3316.5,3.162825]
[1722438229426,3.01513,3316.6,3316.5,0.147625]
[1722438229723,3.01504,3316.7,3316.5,0.147625]
[1722438229896,3.01491,3316.9,3316.5,0.147625]
[1722438230313,3.01495,3316.8,3316.5,0.147625]
[1722438230467,3.0148,3317.0,3316.5,0.147625]
[1722438230814,3.01495,3316.8,3316.5,0.147625]
[1722438231019,3.0148,3317.0,3316.5,0.147625]
[1722438231164,5.35369,3317.2,3316.5,0.147625]
[1722438231371,3.01506,3316.7,3316.5,0.147625]
[1722438231568,3.01484,3317.0,3316.5,0.147625]
[1722438231785,3.01505,3316.7,3316.5,0.147625]
[1722438232055,3.01491,3316.9,3316.5,0.147625]
[1722438232234,2.3113,3317.3,3316.5,0.147625]
[1722438232235,2.71233,3317.2,3316.5,0.147625]
[1722438232417,3.0,3317.1,3316.5,3.162785]
[1722438232849,3.0,3317.1,3316.6,3.01513]
[1722438233161,3.0,3317.3,3316.8,3.01494]
[1722438233372,6.01437,3317.5,3316.8,3.01494]
[1722438233664,3.0,3317.5,3317.1,3.01465]
[1722438233811,5.49274,3317.8,3317.1,3.01465]
[1722438233812,3.0,3317.7,3317.1,3.01465]
[1722438234011,3.849274,3317.7,3316.5,0.147625]
[1722438234245,3.01455,3317.3,3316.6,3.01506]
[1722438234451,3.01428,3317.6,3316.5,0.147625]
[1722438234757,3.0,3317.5,3317.1,3.01467]
[1722438234961,3.0,3317.6,3317.1,3.01467]
[1722438235168,5.4787,3317.8,3317.1,3.01463]
[1722438235383,3.01351,3318.4,3317.3,3.01443]
[1722438235384,3.01386,3318.0,3317.3,3.01443]
[1722438235550,2.4411,3318.4,3317.5,3.01425]
[1722438235551,3.01373,3318.2,3317.5,3.01425]
[1722438235853,3.01373,3318.2,3317.6,3.0142]
[1722438236056,7.41,3318.3,3317.7,3.01412]
[1722438236412,7.41,3318.3,3317.3,3.01445]
[1722438236616,7.41,3318.3,3317.9,3.0139]
[1722438236956,7.41,3318.3,3317.5,3.01424]
[1722438237262,7.41,3318.3,3317.9,3.0139]
[1722438237561,3.01318,3318.8,3318.1,3.01369]
[1722438238059,9.8664,3318.9,3317.9,3.01391]
[1722438238294,3.0135,3318.4,3317.7,3.01406]
[1722438238465,0.98664,3318.8,3317.7,3.01406]
[1722438238466,3.0134,3318.5,3317.7,3.01406]
[1722438238647,3.0136,3318.3,3317.7,3.01406]
[1722438239113,3.0134,3318.5,3317.8,3.01404]
[1722438239317,6.02689,3318.5,3317.8,3.01404]
[1722438239545,3.01322,3318.7,3318.0,3.01386]
[1722438239732,0.98664,3318.8,3317.9,3.0139]
[1722438239964,0.98664,3318.8,3318.4,3.01346]
[1722438239965,3.0,3318.8,3318.4,3.01346]
[1722438240262,3.0,3318.8,3317.8,3.01396]
[1722438240413,3.0,3318.8,3317.5,2.2954]
[1722438240414,7.41,3318.9,3318.4,3.01342]
[1722438240614,3.0133,3318.7,3317.7,3.01405]
[1722438240819,7.41,3318.9,3317.8,3.01404]
[1722438240820,3.01347,3318.5,3317.8,3.01404]
[1722438241018,3.01364,3318.3,3317.7,3.01411]
[1722438241227,3.01356,3318.4,3317.7,3.01412]
[1722438241626,3.01346,3318.5,3317.9,3.01394]
[1722438242030,3.01346,3318.5,3317.7,3.01412]
[1722438242031,3.0135,3318.4,3317.7,3.01412]
[1722438242228,7.41,3318.9,3317.9,3.01386]
[1722438242229,3.01332,3318.6,3317.9,3.01386]
[1722438242474,3.01355,3318.4,3317.7,3.01408]
[1722438242765,3.01316,3318.8,3317.7,0.602835]
[1722438242990,3.0,3318.7,3318.3,3.01357]
[1722438243118,7.41,3318.9,3317.9,3.01391]
[1722438243331,7.41,3318.9,3317.8,0.06027591]
[1722438243332,3.01274,3319.3,3318.5,3.01332]
[1722438243530,3.01274,3319.3,3318.7,3.01322]
[1722438243838,2.3842,3319.4,3318.7,3.01322]
[1722438243839,5.39684,3319.4,3318.7,3.01315]
[1722438244038,7.02398457,3319.4,3318.7,3.01315]
[1722438244232,10.03666457,3319.4,3318.7,3.01315]
[1722438244479,7.02398457,3319.4,3318.7,3.01315]
[1722438244982,3.0,3319.3,3318.7,3.01315]
[1722438245152,3.0,3319.3,3318.5,0.0602644]
[1722438245153,3.0,3319.4,3319.0,3.01288]
[1722438245347,3.0,3319.5,3319.0,3.01288]
[1722438245692,7.41,3319.6,3319.0,3.01294]
[1722438245989,7.41,3319.6,3318.8,3.07335826]
[1722438246132,7.41,3319.6,3319.2,3.0127]
[1722438247448,7.41,3319.6,3319.2,3.01269]
[1722438247646,7.41,3319.6,3319.0,3.01292]
[1722438248066,10.42243,3319.6,3319.0,3.01292]
[1722438248276,3.01255,3319.5,3318.8,3.01312]
[1722438248455,8.452243,3319.6,3318.8,3.01312]
[1722438248653,3.01259,3319.4,3318.8,3.01312]
[1722438249488,3.01259,3319.4,3318.8,6.02618]
[1722438249693,10.42242,3319.6,3319.0,3.01286]
[1722438249694,7.41,3319.6,3319.0,3.01286]
[1722438249856,7.41,3319.6,3319.2,3.01271]
[1722438250060,7.41,3319.6,3319.3,3.01268]
[1722438250243,7.41,3319.6,3319.4,3.01258]
[1722438250680,2.3301,3320.0,3319.5,3.01247]
[1722438250911,3.0,3320.2,3319.6,3.01239]
[1722438251190,10.42181,3320.3,3319.7,3.01225]
[1722438251191,7.41,3320.3,3319.7,3.01225]
[1722438251391,1.574923,3320.3,3319.7,3.01225]
[1722438251707,5.32744,3320.5,3319.8,3.01217]
[1722438252073,5.32744,3320.5,3319.9,3.01212]
[1722438252694,3.01168,3320.4,3319.7,6.02448]
[1722438252894,22.85158,3320.6,3320.0,3.01199]
[1722438253220,3.01127,3320.9,3320.0,3.01199]
[1722438253221,3.01139,3320.8,3320.0,3.01199]
[1722438253502,3.0,3320.5,3320.2,3.01185]
[1722438253707,3.312517,3320.8,3320.2,3.01185]
[1722438254011,3.0,3320.7,3320.2,3.01185]
[1722438254315,7.41,3320.9,3320.4,3.01161]
[1722438254608,9.6913,3321.4,3320.6,3.0115]
[1722438254917,9.6913,3321.4,3320.9,3.0112]
[1722438255072,7.41,3321.4,3321.0,3.01112]
[1722438255276,7.41,3321.4,3321.1,3.01097]
[1722438255491,3.01042,3321.8,3321.1,3.01098]
[1722438255692,9.8112,3321.9,3321.1,3.01098]
[1722438255693,1.282162,3321.7,3321.1,3.01098]
[1722438255913,5.4116,3321.9,3321.2,3.01095]
[1722438256977,3.01018,3322.1,3321.5,3.01066]
[1722438257284,7.41,3322.2,3321.7,3.01049]
[1722438257669,3.01034,3321.9,3321.1,3.01098]
[1722438257874,3.01056,3321.7,3321.1,3.01098]
[1722438258075,3.01034,3321.9,3321.2,3.01095]
[1722438258387,3.01041,3321.8,3321.2,3.01095]
[1722438258595,3.0103,3322.0,3321.2,3.01095]
[1722438258780,4.353348,3322.0,3321.2,3.01095]
[1722438259119,3.01042,3321.8,3321.0,3.01109]
[1722438259353,1.343048,3322.0,3320.6,2.3859]
[1722438259618,3.01056,3321.7,3321.0,3.01114]
[1722438259923,3.01056,3321.7,3321.1,3.011]
[1722438260221,0.301056,3321.6,3321.1,3.01104]
[1722438260423,3.0,3321.8,3321.1,3.01104]
[1722438260629,3.0,3321.8,3321.1,3.01096]
[1722438260775,1.343048,3322.0,3321.4,3.01072]
[1722438261134,1.343048,3322.0,3321.5,3.01068]
[1722438261497,3.0,3322.1,3321.6,3.01059]
[1722438261706,7.41,3322.2,3321.6,3.01059]
[1722438261938,10.42008,3322.2,3321.6,3.01059]
[1722438262139,3.01017,3322.1,3321.4,3.01074]
[1722438262340,10.42008,3322.2,3321.6,3.01058]
[1722438262474,8.752997,3322.2,3321.6,3.01058]
[1722438262674,8.752997,3322.2,3321.8,3.01041]
[1722438262940,7.41,3322.2,3321.7,3.01044]
[1722438264094,3.00997,3322.3,3321.7,3.01044]
[1722438264638,3.00989,3322.4,3321.8,3.01041]
[1722438265383,5.3825,3322.5,3321.9,3.0103]
[1722438265679,3.0,3322.5,3322.0,3.01023]
[1722438265917,3.901934,3322.5,3322.0,3.01021]
[1722438266499,6.00961,3322.7,3322.0,3.01021]
[1722438266878,6.00961,3322.7,3322.1,3.01012]
[1722438267128,3.00976,3322.6,3321.8,3.01039]
[1722438267279,3.0,3322.5,3321.8,3.01039]
[1722438267483,3.0,3322.5,3322.0,3.01023]
[1722438267693,3.00952,3322.8,3322.1,3.01013]
[1722438267998,3.310552,3322.7,3322.1,3.01013]
[1722438268221,3.0,3322.6,3322.1,3.01013]
[1722438269129,3.310552,3322.7,3322.1,3.01013]
[1722438269334,0.300952,3322.7,3322.1,3.01013]
[1722438269481,3.310602,3322.7,3322.1,3.01013]
[1722438269696,3.3407502,3322.6,3321.9,3.0103]
[1722438270029,3.3407502,3322.6,3322.0,6.02039]
[1722438270229,0.3310602,3322.6,3322.1,3.01007]
[1722438270435,0.3310602,3322.6,3322.0,3.01016]
[1722438270930,0.3310602,3322.6,3321.7,3.01047]
[1722438271135,0.33310602,3322.5,3321.9,3.01028]
[1722438271342,0.33310602,3322.5,3322.1,3.01013]
[1722438271664,3.00965,3322.7,3322.1,3.01013]
[1722438271860,3.00984,3322.5,3321.9,3.01025]
[1722438272018,3.0,3323.0,3321.1,3.71080351]
[1722438272019,3.01011,3322.2,3321.6,3.01059]
[1722438272350,3.01014,3322.1,3321.6,3.01059]
[1722438272648,3.0102,3322.1,3321.1,3.563]
[1722438272811,3.0101,3322.2,3321.6,3.01059]
[1722438273013,3.01024,3322.0,3321.4,3.01069]
[1722438273380,3.01024,3322.0,3321.3,3.01085]
[1722438273652,3.01009,3322.2,3321.4,3.01076]
[1722438273856,3.01038,3321.9,3321.3,3.01085]
[1722438274015,3.01018,3322.1,3321.3,3.01083]
[1722438274216,3.01037,3321.9,3321.3,3.01083]
[1722438274555,3.01018,3322.1,3321.3,3.0108]
[1722438275047,6.02079,3321.9,3321.3,3.0108]
[1722438275356,3.01011,3322.2,3321.5,3.01063]
[1722438275649,3.01011,3322.2,3320.9,5.3784]